{"text_format":"1","workbook":"xlsx","n_sheets":2,"sheets":["Bila D","Bilanzanalyse"],"not_rendered":{"charts":0,"images":0,"macros":0,"external_links":0,"defined_names":4,"comments":0,"pivot_tables":0},"unopened":[],"bounds":{"document_bytes":16777216,"sheet_cells":100000,"rows_first":2000,"rows_last":500,"rows_between":2000,"halvings":0,"cell_chars":16384,"cell_head_chars":4096},"cells_cut":0,"cells_raw":0,"read":"whole","date_system":"1900"}

{"sheet":"Bila D","index":0,"n_rows":78,"n_cols":13,"rows_kept":78,"cut":false,"hidden":false,"merged":[[1,1,1,13],[2,0,2,13],[3,0,3,13]]}
[]
[]
["Carl Zeiss Meditec AG"]
["Konzern-Bilanz (IFRS) zum 30. Juni 2015"]
[]
[null,null,null,null,null,null," ",null,"Anhang",null,"30. Juni\n2015",null,"30. September\n2014"]
[null,null,null,null,null,null,null,null,null,null,"€ Tsd.",null,"€ Tsd."]
[]
[null,"AKTIVA"]
[null,"Geschäfts- oder Firmenwert",null,null,null,null,null,null,"(2e) (10)",null,165356,null,158876]
[null,"Sonstige immaterielle Vermögenswerte",null,null,null,null,null,null,"(2f) (11)",null,43564,null,41633]
[null,"Sachanlagen",null,null,null,null,null,null,"(2g) (12)",null,66521,null,65049]
[null,"At-Equity Beteiligungen",null,null,null,null,null,null,"(15)",null,6338,null,0]
[null,"Ausleihungen an At-Equity Beteiligungen",null,null,null,null,null,null,null,null,7635,null,0]
[null,"Beteiligungen",null,null,null,null,null,null,null,null,124,null,124]
[null,"Latente Ertragsteuern",null,null,null,null,null,null,"(2i) (13)",null,73704,null,65941]
[null,"Langfristige Forderungen aus Lieferungen und Leistungen",null,null,null,null,null,null,"(16)",null,15453,null,10161]
[null,"Sonstige langfristige Vermögenswerte",null,null,null,null,null,null,"(2h) (14)",null,1504,null,1471]
[]
[null,"Langfristige Vermögenswerte",null,null,null,null,null,null,null,null,{"$f":"SUM(K8:K19)","v":380199},null,{"$f":"SUM(M8:M19)","v":343255}]
[]
[null,"Vorräte",null,null,null,null,null,null,"(2j) (15)",null,208481,null,172402]
[null,"Forderungen aus Lieferungen und Leistungen",null,null,null,null,null,null,"(16)",null,159245,null,142607]
[null,"Forderungen gegen nahe stehende Unternehmen",null,null,null,null,null,null,"(2t) (32)",null,70810,null,57103]
[null,"Forderungen aus Finanzausgleich",null,null,null,null,null,null,"(2t) (32)",null,261879,null,290614]
[null,"Steuererstattungsansprüche",null,null,null,null,null,null,null,null,1602,null,3670]
[null,"Sonstige kurzfristige finanzielle Vermögenswerte",null,null,null,null,null,null,"(2h) (17)",null,3543,null,3141]
[null,"Sonstige kurzfristige nicht-finanzielle Vermögenswerte",null,null,null,null,null,null,"(18)",null,18439,null,15591]
[null,"Wertpapiere",null,null,null,null,null,null,"(2i)"]
[null,"Liquide Mittel mit Verfügungsbeschränkung",null,null,null,null,null,null,"(12)"]
[null,"Zahlungsmittel und Zahlungsmitteläquivalente",null,null,null,null,null,null,"(2l) (19)",null,9444,null,10727]
[]
[null,"Kurzfristige Vermögenswerte",null,null,null,null,null,null,null,null,{"$f":"SUM(K22:K31)","v":733443},null,{"$f":"SUM(M22:M31)","v":695855}]
[]
[null,"Bilanzsumme",null,null,null,null,null,null,null,null,{"$f":"+K33+K20","v":1113642},null,{"$f":"+M33+M20","v":1039110}]
[]
[null,"PASSIVA"]
[null,"Gezeichnetes Kapital",null,null,null,null,null,null,"(20)",null,81310,null,81310]
[null,"Kapitalrücklage",null,null,null,null,null,null,"(20)",null,313863,null,313863]
[null,"Gewinnrücklagen",null,null,null,null,null,null,"(20)",null,380906,null,361130]
[null,"Eigene Anteile",null,null,null,null,null,null,"(12)"]
[null,"Sonstige Bestandteile des Eigenkapitals",null,null,null,null,null,null,"(2m) (20)",null,-25180,null,-41031]
[]
[null,"Eigenkapital ohne Anteile nicht-beherrschender Gesellschafter",null,null,null,null,null,null,null,null,{"$f":"SUM(K38:K42)","v":750899},null,{"$f":"SUM(M38:M42)","v":715272}]
[null,"Ausgleichsposten für Anteile nicht-beherrschender Gesellschafter",null,null,null,null,null,null,"(20)",null,41967,null,38955]
[]
[null,"Eigenkapital",null,null,null,null,null,null,null,null,{"$f":"SUM(K44:K45)","v":792866},null,{"$f":"SUM(M44:M45)","v":754227}]
[]
[null,"Pensionsrückstellungen und ähnliche Verpflichtungen",null,null,null,null,null,null,"(2n) (21)",null,61444,null,48888]
[null,"Andere langfristige Rückstellungen",null,null,null,null,null,null,"(2o) (22)",null,3567,null,3911]
[null,"Langfristige finanzielle Verbindlichkeiten",null,null,null,null,null,null,"(23)",null,2604,null,1588]
[null,"Langfristige Leasingverbindlichkeiten",null,null,null,null,null,null,"(2k) (27)",null,9639,null,10415]
[null,"Langfristige Verbindlichkeiten aus Ertragsteuern"]
[null,"Sonstige langfristige nicht-finanzielle Verbindlichkeiten",null,null,null,null,null,null,null,null,7722,null,7596]
[null,"Latente Ertragsteuern",null,null,null,null,null,null,"(2i) (13)",null,13668,null,12402]
[]
[null,"Langfristige Schulden",null,null,null,null,null,null,null,null,{"$f":"SUM(K49:K56)","v":98644},null,{"$f":"SUM(M49:M56)","v":84800}]
[]
[null,"Kurzfristige Rückstellungen",null,null,null,null,null,null,"(2o) (22)",null,19970,null,26901]
[null,"Kurzfristige abgegrenzte Verbindlichkeiten",null,null,null,null,null,null,"(24)",null,69016,null,60576]
[null,"Kurzfristige finanzielle Verbindlichkeiten",null,null,null,null,null,null,"(2h)",null,7976,null,13435]
[null,"Kurzfristiger Anteil langfristiger finanzieller Verbindlichkeiten",null,null,null,null,null,null,"(23)",null,488,null,477]
[null,"Kurzfristiger Anteil langfristiger Leasingverbindlichkeiten",null,null,null,null,null,null,"(2k) (27)",null,2762,null,2359]
[null,"Verbindlichkeiten aus Lieferungen und Leistungen",null,null,null,null,null,null,null,null,33388,null,33421]
[null,"Kurzfristige Verbindlichkeiten aus Ertragsteuern",null,null,null,null,null,null,null,null,4331,null,7741]
[null,"Verbindlichkeiten gegenüber nahe stehenden Unternehmen",null,null,null,null,null,null,"(2t) (32)",null,16626,null,16527]
[null,"Verbindlichkeiten aus Finanzausgleich",null,null,null,null,null,null,"(2t) (32)",null,30519,null,8022]
[null,"Sonstige kurzfristige nicht-finanzielle Verbindlichkeiten",null,null,null,null,null,null,"(25)",null,37056,null,30624]
[]
[null,"Kurzfristige Schulden",null,null,null,null,null,null,null,null,{"$f":"SUM(K59:K68)","v":222132},null,{"$f":"SUM(M59:M68)","v":200083}]
[]
[null,"Bilanzsumme",null,null,null,null,null,null,null,null,{"$f":"+K70+K57+K47","v":1113642},null,{"$f":"+M70+M57+M47","v":1039110}]
[null,null,null,null,null,null,null,null,null,null,{"$f":"+K72-K35","v":0},null,{"$f":"+M72-M35","v":0}]
[]
[]
[]
[]
[null,"Der nachfolgende Konzernanhang ist integraler Bestandteil des ungeprüften Konzernabschlusses."]

{"sheet":"Bilanzanalyse","index":1,"n_rows":14,"n_cols":5,"rows_kept":14,"cut":false,"hidden":true,"merged":[[0,0,0,1]]}
["Abw. Dec./ Sep",null,"Begründung","davon\n erklärt","Differenz"]
[{"$f":"'Bila D'!Q10","v":0},"Geschäfts- oder Firmenwert","Zugang IMEX 7,432 Mio.",{"$f":"7432","v":7432},{"$f":"A2-D2","v":-7432}]
[{"$f":"'Bila D'!Q11","v":0},"Immaterielle Vermögenswerte","Zugang IMEX 5,551 Mio."]
[{"$f":"'Bila D'!Q12","v":0},"Sachanlagen","Zugang CZM AG 4,0 Mio. vor Afa (hauptsächlich Olymp ca. 3,2 Mio.); Übernahme Mietgeräte bei CZM VG aus Umlaufvermögen (+1,2 Mio.)"]
[{"$f":"'Bila D'!Q23","v":0},"Forderungen aus Lieferungen und Leistungen","hierin enthalten 2,9 Mio. Alcon-Lizenzen, Cash-Zahlung erfolgt erst im Januar"]
[{"$f":"'Bila D'!Q24","v":0},"Forderungen gegen nahe stehende Unternehmen","v.a. Umsatzanstieg Q1 CZM AG (Umsatz je Quartal: GJ 10/11 --> 113 Mio., Q1 11/12 --> 141 Mio.)  "]
[{"$f":"'Bila D'!Q27","v":0},"Sonstige kurzfristige finanzielle Vermögenswerte","Anstieg aus CZM Inc. aufgrund der Umgliederung der Kreditkartenforderungen von kurzf. Nicht-finanz. Vw in kurzf. Finanz. Vermögenswerte (+1,3 Mio.). Anstieg CZM AG (+0,3 Mio.) für Zinsabgrenzungen (COBA + HVB)",{"$f":"1300+300","v":1600},{"$f":"A7-D7","v":-1600}]
[{"$f":"'Bila D'!Q28","v":0},"Sonstige kurzfristige nicht-finanzielle Vermögenswerte","Kompensation des Umgliederungseffektes USA durch CZM F (+0,6 Mio., u.a. UST, ARAP), CZM AG (+0,4 Mio.) "]
[1207,"Andere langfristige Rückstellungen","IMEX earn out Anteil +2,218 Mio.; Kompensation durch CZM AG (-915 TEUR ATZ, -142 TEUR Verbrauch ERA RST und sonstiges)",{"$f":"(2.218-0.915-0.142)*1000","v":1161},46]
[{"$f":"'Bila D'!Q59","v":0},"Kurzfristige Rückstellungen","IMEX earn out Anteil +2,149 Mio., Abgrenzung KöSteuer +1,5 Mio. (CZM AG), RST für Gewährleistungen pauschal +0,55 Mio. (CZM AG), Konzernrückstellung Q1 für Projekttehmen +0,85 Mio., Auflösung RST für Bonuszahlung im Dezember + RST-Bildung für geschätzte Logistikosten (CZM Japan), Zuführung RST CZM Inc. für Ferien, Warenrückgabe und Gewährleistung",{"$f":"(2.149+1.5+0.55+0.85)*1000","v":5048.9999999999991},-5048.9999999999991]
[{"$f":"'Bila D'!Q60","v":0},"Kurzfristige abgegrenzte Verbindlichkeiten","Auszahlung Renumeration für FY 10/11 CZM VG -0,8 Mio. (hier auch Reduzierung RST für ausstehende Rechnung enthalten) und USA -3,1 Mio. (u.a. MBO-Bonus, Super-Bonus); z.T. Kompensation/ Anstieg durch unterjährige Rechnungsabgrenzungen + Risiken CZM AG +1,36 Mio. (davon 0,6 Mio. Konzern-RST bzw. 0,3 Mio. CZM-Verbundene, die im Konzern wieder eliminiert werden); CZM SAS + FCI -04 Mio. Rückgang Personalverbindlichkeiten aufgrund erfolgter Bonuszahlung im Dez 11",{"$f":"(-0.8-3.1+1.36-0.3-0.4)*1000","v":-3239.9999999999995},3239.9999999999995]
[{"$f":"'Bila D'!Q61","v":0},"Kurzfristige finanzielle Verbindlichkeiten","Devisentermingeschäfte CZM AG +3,3 Mio. EUR, Reduzierung ausstehende Checks USA aufgrund von Lieferantenzahlungen -0,6 Mio.",{"$f":"(3.3-0.6)*1000","v":2699.9999999999995},-2699.9999999999995]
[{"$f":"'Bila D'!Q64","v":0},"Verbindlichkeiten aus Lieferungen und Leistungen","CZM AG: Umstellung Lieferantenzahlungen auf tägliche Zahlungen nach Fälligkeit ab Q1 2012 (-3,9 Mio.)"]
[{"$f":"'Bila D'!Q68","v":0},"Sonstige kurzfristige nicht-finanzielle Verbindlichkeiten","CZM AG: Lohnsteuerverbindlichkeiten +2,0 Mio. (Prämienzahlung 31.12.) , Lizenzen Alcon +2,2 Mio. Erhaltene Anzahlungen -1,0 Mio.,\nCZM VG: Erhöhung \"erhaltene Anzahlungen\" und Lohnsteuerverbindlichkeiten zum 31.12. (+0,6 Mio.)\nCZM Inc: Service-RST (+0,5 Mio.), abgegrenzter Service-Ertrag (+0,4 Mio.)\nCZM Japan: Bonuszahlung Dez 11 (+0,4 Mio.), Kundenvorauszahlungen OPMI Lumera + Vario (+0,5 Mio.), U-Anteil soziale Sicherheit (+0,2 Mio.)\nCZM Spanien: abgegrenter Ertrag (+0,3 Mio.) ",{"$f":"(2+2.2-1+0.6+0.5+0.4+0.4+0.5+0.2+0.3)*1000","v":6100.0000000000018},-6100.0000000000018]